bitfinex/quotes_SOLUSD_20250226
["timestamp","ask_amount","ask_price","bid_price","bid_amount"]
[1740606311035,18.64964886,134.85,134.8,1.0]
[1740606311238,0.063,134.87,134.8,81.8403457]
[1740606311429,0.063,134.87,134.8,82.8403457]
[1740606311629,0.063,134.87,134.81,1.0]
[1740606311837,0.063,134.87,134.81,217.53334609]
[1740606312128,18.71264886,134.87,134.81,81.8403457]
[1740606313131,18.71264886,134.87,134.82,1.0]
[1740606313336,0.063,134.87,134.83,1.0]
[1740606313532,0.063,134.87,134.86,1.0]
[1740606313751,0.063,134.87,134.86,227.21286504]
[1740606313964,0.063,134.87,134.86,225.65634609]
[1740606314151,0.063,134.87,134.86,217.53334609]
[1740606314347,0.063,134.87,134.83,82.8403457]
[1740606314850,0.063,134.87,134.84,1.0]
[1740606315052,0.063,134.87,134.77,217.56334609]
[1740606315262,18.64964886,134.85,134.77,218.56334609]
[1740606315426,0.063,134.87,134.77,219.56334609]
[1740606315630,0.063,134.87,134.77,217.56334609]
[1740606315830,0.063,134.87,134.77,218.56334609]
[1740606316348,0.063,134.87,134.77,81.8703457]
[1740606316525,18.64964886,134.86,134.77,81.8703457]
[1740606317148,18.64964886,134.86,134.78,1.0]
[1740606317449,18.64964886,134.86,134.79,1.0]
[1740606317833,18.64964886,134.86,134.78,217.53334609]
[1740606318150,18.64964886,134.86,134.81,1.0]
[1740606318354,0.063,134.87,134.82,1.0]
[1740606318944,0.063,134.87,134.83,1.0]
[1740606319144,0.063,134.87,134.85,1.0]
[1740606319349,0.063,134.87,134.85,218.53334609]
[1740606320055,0.063,134.87,134.85,217.53334609]
[1740606320236,0.063,134.87,134.83,81.8403457]
[1740606321138,0.063,134.87,134.8,81.8403457]
[1740606322579,18.64964886,134.86,134.8,81.8403457]
[1740606322742,18.64964886,134.84,134.77,81.8703457]
[1740606323063,18.64964886,134.82,134.77,0.03]
[1740606323470,22.38971248,134.82,134.77,0.03]
[1740606324037,18.64964886,134.8,134.77,0.03]
[1740606324375,26.23734886,134.78,134.72,0.03]
[1740606324557,18.64964886,134.76,134.72,0.03]
[1740606324740,18.64964886,134.74,134.72,0.03]
[1740606324955,82.9,134.73,134.72,0.03]
[1740606325261,101.54964886,134.73,134.72,0.03]
[1740606327466,101.54964886,134.73,134.64,206.9603457]
[1740606327467,18.64964886,134.72,134.64,206.9603457]
[1740606327649,101.54964886,134.72,134.64,125.12]
[1740606328358,105.28971248,134.72,134.64,125.12]
[1740606328559,18.64964886,134.7,134.63,0.03]
[1740606328763,18.64964886,134.68,134.63,0.03]
[1740606328964,2.0,134.65,134.63,2.8937003]
[1740606329268,2.0,134.65,134.58,0.03]
[1740606329269,18.64964886,134.61,134.58,0.03]
[1740606329476,88.9563,134.6,134.58,0.03]
[1740606329967,18.64964886,134.59,134.58,0.03]
[1740606330170,220.1,134.58,134.49,0.9247762]
[1740606330369,114.44971248,134.57,134.49,0.9247762]
[1740606330572,22.38971248,134.57,134.49,1.9247762]
[1740606330750,3.74006362,134.57,134.49,219.5651219]
[1740606330956,101.54964886,134.59,134.49,0.9247762]
[1740606331268,19.64964886,134.57,134.49,0.9247762]
[1740606331474,18.64964886,134.57,134.49,0.9247762]
[1740606332353,23.02355646,134.57,134.49,0.9247762]
[1740606332552,18.64964886,134.57,134.49,0.9247762]
[1740606332875,18.64964886,134.55,134.49,0.9247762]
[1740606333174,18.64964886,134.53,134.49,0.9247762]
[1740606333663,18.64964886,134.51,134.49,0.9247762]
[1740606334471,23.53513513,134.51,134.49,0.9247762]
[1740606335354,18.64964886,134.49,134.38,0.9247762]
[1740606335674,18.64964886,134.47,134.38,0.9247762]
[1740606335972,18.64964886,134.45,134.38,0.9247762]
[1740606336955,18.64964886,134.45,134.38,82.7651219]
[1740606337374,18.64964886,134.45,134.38,0.9247762]
[1740606337965,18.64964886,134.45,134.38,1.9247762]
[1740606338270,82.9,134.49,134.39,1.0]
[1740606338479,82.9,134.49,134.4,1.0]
[1740606338685,9.16,134.51,134.43,1.0]
[1740606338886,82.9,134.53,134.43,219.6403457]
[1740606339062,82.9,134.53,134.43,228.8003457]
[1740606339258,9.16,134.55,134.44,8.6117]
[1740606339476,18.64964886,134.54,134.45,1.0]
[1740606339673,82.9,134.57,134.45,138.8]
[1740606339879,82.9,134.57,134.45,219.2]
[1740606340075,105.92355646,134.56,134.44,7.6117]
[1740606340481,82.9,134.6,134.49,1.0]
[1740606340777,82.9,134.6,134.49,219.2]
[1740606340992,4.3739076,134.62,134.5,1.0]
[1740606341159,4.3739076,134.62,134.51,1.0]
[1740606341361,4.3739076,134.62,134.51,2.0]
[1740606341568,4.3739076,134.62,134.51,1.0]
[1740606341774,92.06,134.65,134.53,2.0]
[1740606341987,18.64964886,134.64,134.53,219.2]
[1740606342200,96.94548627,134.65,134.53,219.2]
[1740606342365,18.64964886,134.64,134.53,220.2]
[1740606342664,18.64964886,134.62,134.51,82.4]
[1740606342867,18.64964886,134.6,134.51,82.4]
[1740606343270,18.64964886,134.6,134.5,136.8]
[1740606343484,83.9,134.64,134.49,91.56]
[1740606343661,18.64964886,134.63,134.49,93.56]
[1740606343862,18.64964886,134.63,134.5,1.0]
[1740606344056,18.64964886,134.63,134.5,220.2]
[1740606344484,18.64964886,134.63,134.51,1.0]
[1740606344691,23.02355646,134.63,134.5,219.2]
[1740606344984,18.64964886,134.61,134.48,228.36]
[1740606345185,87.2739076,134.62,134.49,0.03]
[1740606345186,18.64964886,134.59,134.49,0.03]
[1740606345361,18.64964886,134.57,134.49,0.03]
[1740606345566,101.54964886,134.57,134.49,0.03]
[1740606345969,18.64964886,134.55,134.49,0.03]
[1740606346266,18.64964886,134.53,134.49,0.03]
[1740606346670,82.9,134.52,134.49,0.03]
[1740606346964,18.64964886,134.51,134.49,0.03]
[1740606348885,82.9,134.5,134.49,0.03]
[1740606349080,101.54964886,134.5,134.49,0.03]
[1740606349485,18.64964886,134.5,134.49,0.03]
[1740606349884,82.9,134.53,134.49,0.03]
[1740606350091,9.16,134.54,134.49,0.03]
[1740606350293,18.64964886,134.53,134.49,0.03]
[1740606350487,18.64964886,134.55,134.49,0.03]
[1740606352292,18.64964886,134.53,134.49,0.03]
[1740606354482,18.64964886,134.51,134.49,0.03]
[1740606355290,9.16,134.56,134.49,0.03]
[1740606355490,82.9,134.55,134.49,0.03]
[1740606355705,18.64964886,134.54,134.49,0.03]
[1740606356296,18.64964886,134.52,134.49,0.03]
[1740606356487,18.64964886,134.5,134.49,0.03]
[1740606357082,9.16,134.5,134.49,0.03]
[1740606357278,9.16,134.5,134.38,2.4405762]
[1740606357279,14.04548627,134.5,134.38,2.4405762]
[1740606357478,4.3739076,134.49,134.38,2.4405762]
[1740606357691,18.64964886,134.48,134.38,2.4405762]
[1740606358109,18.64964886,134.48,134.4,1.0]
[1740606358403,18.64964886,134.48,134.38,221.6405762]
[1740606358597,18.64964886,134.48,134.38,230.8005762]
[1740606359021,18.64964886,134.52,134.41,1.0]
[1740606359203,18.64964886,134.52,134.41,137.8]
[1740606359407,18.64964886,134.52,134.41,138.8]
[1740606359695,18.64964886,134.52,134.42,1.0]
[1740606360279,18.64964886,134.52,134.43,8.2994]
[1740606360487,9.16,134.54,134.43,6.2994]
[1740606360685,9.16,134.54,134.39,219.2]
[1740606360885,18.64964886,134.52,134.39,219.2]
[1740606361088,18.64964886,134.52,134.42,1.0]
[1740606361291,18.64964886,134.52,134.46,1.0]
[1740606361489,0.063,134.56,134.47,7.4634]
[1740606361689,0.063,134.56,134.47,226.6634]
[1740606361897,0.063,134.56,134.48,1.5918]
[1740606362096,0.063,134.56,134.49,1.0]
[1740606362404,0.063,134.56,134.5,1.0]
[1740606362605,0.063,134.56,134.52,2.0]
[1740606362806,0.063,134.56,134.53,3.56020378]
[1740606363107,0.063,134.63,134.57,9.1524]
[1740606363402,0.063,134.63,134.57,227.3524]
[1740606363913,0.063,134.63,134.57,8.1524]
[1740606364898,0.063,134.63,134.57,1.6361]
[1740606365093,0.063,134.63,134.52,219.2]
[1740606365296,18.64964886,134.61,134.51,1.5425]
[1740606365696,12.32228584,134.62,134.51,221.7425]
[1740606365901,3.16228584,134.62,134.51,220.7425]
[1740606366611,18.64964886,134.61,134.51,220.7425]
[1740606367286,0.063,134.63,134.54,1.0]
[1740606367516,0.063,134.63,134.55,2.0]
[1740606367720,0.063,134.63,134.57,2.0]
[1740606367886,0.063,134.63,134.58,2.55956082]
[1740606368093,0.063,134.63,134.58,219.2]
[1740606368418,0.063,134.63,134.59,2.55965747]
[1740606368596,0.063,134.63,134.59,6.4414]
[1740606368928,0.063,134.63,134.59,7.4414]
[1740606369389,0.063,134.63,134.59,6.4414]
[1740606369894,0.063,134.63,134.6,1.0]
[1740606370821,0.063,134.63,134.59,6.4414]
[1740606370994,0.063,134.63,134.59,7.4414]
[1740606371314,0.063,134.63,134.59,6.4414]
[1740606371814,0.063,134.63,134.59,7.4414]
[1740606372113,0.063,134.63,134.59,6.4414]
[1740606372793,0.063,134.63,134.59,225.6414]
[1740606373393,0.063,134.63,134.59,88.8414]
[1740606373593,0.063,134.63,134.59,225.6414]
[1740606374118,0.063,134.63,134.59,226.6414]
[1740606374303,0.063,134.63,134.59,227.6414]
[1740606375021,0.063,134.63,134.59,225.6414]
[1740606375715,0.063,134.63,134.59,226.6414]
[1740606375903,0.063,134.63,134.6,1.0]
[1740606376104,0.063,134.7,134.62,1.0]
[1740606376419,0.063,134.7,134.63,1.0]
[1740606376620,0.063,134.7,134.63,220.2]
[1740606378397,0.063,134.7,134.63,82.4]
[1740606379405,18.64964886,134.68,134.63,82.4]
[1740606379609,18.64964886,134.66,134.57,136.8]
[1740606379922,18.64964886,134.64,134.57,82.4]
[1740606380235,82.9,134.65,134.57,84.9598203]
[1740606380409,82.9,134.65,134.57,82.4]
[1740606380596,82.9,134.65,134.57,83.4]
[1740606380832,18.64964886,134.64,134.57,82.4]
[1740606380998,18.64964886,134.64,134.63,0.03]
[1740606381205,82.9,134.65,134.63,0.03]
[1740606382227,18.64964886,134.64,134.63,0.03]
[1740606382724,101.54964886,134.64,134.63,0.03]
[1740606382910,18.64964886,134.64,134.63,0.03]
[1740606383115,19.64964886,134.64,134.63,0.03]
[1740606383318,20.64964886,134.64,134.52,82.4]
[1740606383706,18.64964886,134.62,134.52,82.4]
[1740606383912,18.64964886,134.62,134.52,219.2]
[1740606384229,18.64964886,134.64,134.52,219.2]
[1740606384416,18.64964886,134.64,134.53,1.0]
[1740606384614,3.16228584,134.66,134.55,1.0]
[1740606385126,18.64964886,134.65,134.55,1.0]
[1740606385329,18.64964886,134.65,134.56,10.05743924]
[1740606385642,9.14,134.67,134.57,1.0]
[1740606385813,18.64964886,134.66,134.58,1.0]
[1740606386006,9.14,134.69,134.58,1.0]
[1740606386203,0.063,134.7,134.61,1.0]
[1740606386433,0.063,134.7,134.63,1.0]
[1740606386606,0.063,134.7,134.64,1.0]
[1740606386807,0.063,134.7,134.64,221.75872051]
[1740606387025,0.063,134.7,134.64,219.2]
[1740606387340,0.063,134.7,134.65,1.55887933]
[1740606387537,0.063,134.7,134.64,220.2]
[1740606388022,0.063,134.7,134.65,2.55870586]
[1740606388226,0.063,134.7,134.66,1.0]
[1740606388416,0.063,134.7,134.67,1.55842424]
[1740606388722,0.063,134.7,134.67,222.75842424]
[1740606388907,0.063,134.76,134.69,2.5439]
[1740606389108,0.063,134.76,134.7,10.67808439]
[1740606389908,18.71264886,134.76,134.7,9.12]
[1740606390112,18.71264886,134.76,134.69,220.7439]
[1740606391238,18.71264886,134.76,134.66,228.32]
[1740606391420,27.83264886,134.76,134.64,220.716]
[1740606391611,33.94418179,134.76,134.64,220.716]
[1740606391805,24.82418179,134.76,134.64,220.716]
[1740606392407,18.64964886,134.74,134.64,220.716]
[1740606393827,18.64964886,134.74,134.65,1.5588859]
[1740606394013,6.11153293,134.75,134.65,219.2]
[1740606394212,0.063,134.76,134.66,1.0]
[1740606394420,0.063,134.76,134.68,1.0]
[1740606394623,18.71264886,134.76,134.69,1.55814741]
[1740606394818,18.71264886,134.76,134.69,219.2]
[1740606395026,0.063,134.76,134.69,219.2]
[1740606395432,0.063,134.76,134.7,2.55830128]
[1740606396638,0.063,134.76,134.74,1.5073]
[1740606396834,0.9877762,134.77,134.74,238.75519029]
[1740606397023,0.9877762,134.77,134.75,2.0]
[1740606397220,0.9877762,134.77,134.76,2.55731912]
[1740606397539,0.9877762,134.77,134.76,221.75731912]
[1740606397835,0.9877762,134.77,134.76,219.2]
[1740606398223,0.063,134.84,134.76,220.2]
[1740606398421,0.063,134.84,134.76,221.2]
[1740606398735,0.063,134.84,134.78,1.0]
[1740606398932,0.063,134.84,134.79,3.55687356]
[1740606399133,0.063,134.84,134.8,9.12]
[1740606399533,0.063,134.84,134.8,228.32]
[1740606399927,0.063,134.84,134.81,1.5572476]
[1740606400441,0.063,134.84,134.81,221.7572476]
[1740606400614,0.063,134.84,134.81,219.2]
[1740606401238,0.063,134.87,134.83,2.0]
[1740606401539,0.063,134.87,134.84,3.55624352]
[1740606401734,0.063,134.87,134.84,220.75624352]
[1740606401929,0.063,134.87,134.85,1.55638068]
[1740606402557,0.063,134.9,134.87,1.0]
[1740606402717,0.063,134.9,134.89,1.0]
[1740606402916,0.063,134.9,134.89,221.75583217]
[1740606403145,0.063,134.9,134.89,219.2]
[1740606405437,0.063,134.9,134.89,82.4]
[1740606405638,0.063,134.9,134.83,9.1]
[1740606405939,18.64964886,134.89,134.83,9.1]
[1740606406141,18.64964886,134.89,134.82,207.6]
[1740606406721,0.063,134.9,134.82,344.4]
[1740606406928,0.063,134.9,134.83,2.55669841]
[1740606407634,0.063,134.9,134.83,222.75669841]
[1740606407858,0.063,134.9,134.83,219.2]
[1740606408520,0.063,134.9,134.83,220.2]
[1740606408721,0.063,134.9,134.84,2.0]
[1740606408922,0.063,134.9,134.86,1.0]
[1740606409125,0.063,134.9,134.86,219.2]
[1740606409524,0.063,134.9,134.86,82.4]
[1740606409744,0.063,134.9,134.82,207.6]
[1740606410061,18.64964886,134.88,134.79,219.2]
[1740606410265,101.54964886,134.88,134.79,82.4]
[1740606410953,18.64964886,134.84,134.74,125.08]
[1740606411152,82.9,134.83,134.74,125.08]
[1740606411331,18.64964886,134.82,134.74,125.08]
[1740606412037,9.1,134.84,134.74,344.28]
[1740606412430,4.3739076,134.85,134.74,345.28]
[1740606412639,18.64964886,134.84,134.74,345.28]
[1740606412851,18.64964886,134.84,134.75,9.1]
[1740606413045,18.64964886,134.84,134.74,344.28]
[1740606413240,18.64964886,134.82,134.74,207.48]
[1740606413445,27.74964886,134.82,134.74,207.48]
[1740606413647,38.78605646,134.82,134.74,207.48]
[1740606414038,39.78605646,134.82,134.74,207.48]
[1740606414350,18.64964886,134.8,134.74,125.08]
[1740606414554,82.9,134.79,134.74,125.08]
[1740606414849,93.9364076,134.82,134.74,125.08]
[1740606415041,84.4418,134.86,134.74,207.48]
[1740606415355,18.64964886,134.84,134.74,353.38]
[1740606416050,18.64964886,134.84,134.75,1.55771033]
[1740606416227,92.0,134.87,134.75,221.75771033]
[1740606416539,9.1,134.87,134.76,2.0]
[1740606416732,82.963,134.9,134.76,1.0]
[1740606416932,82.963,134.9,134.76,220.2]
[1740606416933,18.64964886,134.89,134.76,220.2]
[1740606417132,18.64964886,134.89,134.76,219.2]
[1740606417337,18.64964886,134.89,134.76,221.2]
[1740606417564,18.64964886,134.89,134.76,220.2]
[1740606417734,18.71264886,134.9,134.77,1.557275]
[1740606417928,18.71264886,134.9,134.77,221.757275]
[1740606418130,18.71264886,134.9,134.77,220.2]
[1740606418651,18.71264886,134.9,134.78,1.55716484]
[1740606418857,18.71264886,134.9,134.78,220.75716484]
[1740606419039,18.71264886,134.9,134.78,219.2]
[1740606419548,18.71264886,134.9,134.8,1.0]
[1740606419745,0.063,134.9,134.81,2.55679311]
[1740606419948,0.063,134.9,134.81,220.75679311]
[1740606420141,0.063,134.9,134.81,219.2]
[1740606420340,0.063,134.9,134.81,221.2]
[1740606420743,0.063,134.9,134.83,2.0]
[1740606420941,0.063,134.9,134.84,1.55635663]
[1740606421656,0.063,134.9,134.84,2.55635663]
[1740606421859,0.063,134.9,134.83,220.827]
[1740606422076,0.063,134.9,134.83,82.4]
[1740606422779,18.64964886,134.89,134.83,82.4]
[1740606422942,18.64964886,134.89,134.81,82.4]
[1740606423138,18.64964886,134.89,134.78,136.8]
[1740606423139,18.64964886,134.87,134.78,219.2]
[1740606423468,20.22054886,134.87,134.78,82.4]
[1740606424848,19.47054886,134.87,134.78,82.4]
[1740606425047,83.9,134.86,134.74,344.31]
[1740606425360,92.0,134.85,134.74,207.51]
[1740606425549,9.1,134.85,134.74,344.31]
[1740606425755,0.063,134.9,134.77,1.0]
[1740606425949,0.063,134.9,134.78,11.65724365]
[1740606426148,0.063,134.9,134.8,1.0]
[1740606426368,0.063,134.9,134.82,1.0]
[1740606426574,0.063,134.9,134.83,3.5565335]
[1740606426870,0.063,134.9,134.84,9.1]
[1740606427079,0.063,134.9,134.84,228.3]
[1740606427256,0.063,134.9,134.84,82.4]
[1740606428887,0.063,134.9,134.84,220.75697602]
[1740606429050,0.063,134.9,134.84,219.2]
[1740606429376,0.063,134.9,134.85,1.55620594]
[1740606429578,0.063,134.9,134.86,9.08]
[1740606429747,0.063,134.9,134.87,1.55619063]
[1740606430247,0.063,134.9,134.87,220.75619063]
[1740606430557,0.063,134.9,134.87,221.2]
[1740606430868,0.063,134.9,134.87,220.2]
[1740606431069,0.063,134.9,134.87,219.2]
[1740606431558,0.063,134.9,134.88,1.55600677]
[1740606431951,0.063,134.9,134.88,2.55600677]
[1740606432149,0.063,134.9,134.89,43.59829514]
[1740606432350,0.063,134.9,134.89,269.11729514]
[1740606432556,0.063,134.9,134.89,268.11729514]
[1740606432770,0.063,134.9,134.89,267.11729514]
[1740606433069,0.063,134.9,134.89,268.11729514]
[1740606433266,0.063,134.9,134.89,245.73729514]
[1740606433470,0.063,134.9,134.89,226.519]
[1740606433666,0.063,134.9,134.89,225.66116157]
[1740606433853,0.9247762,134.99,134.9,19.79181043]
[1740606434054,0.9247762,134.99,134.91,3.55556327]
[1740606434253,0.9247762,134.99,134.93,20.79181043]
[1740606434459,0.9247762,134.99,134.94,1.55507945]
[1740606434659,0.9247762,134.99,134.94,222.75507945]
[1740606434856,0.9247762,134.99,134.94,221.2]
[1740606435172,0.9247762,134.99,134.96,2.0]
[1740606435367,0.9247762,134.99,134.97,20.3465256]
[1740606435572,0.9247762,134.99,134.98,9.08]
[1740606436375,0.9247762,134.99,134.98,228.28]
[1740606437854,0.9247762,134.99,134.98,82.4]
[1740606438077,18.64964886,134.98,134.93,125.06]
[1740606438248,18.64964886,134.98,134.91,9.08]
[1740606438449,0.9247762,134.99,134.91,220.75617303]
[1740606438654,0.9247762,134.99,134.94,27.17594886]
[1740606438850,0.9247762,134.99,134.95,10.77709169]
[1740606439165,0.9247762,134.99,134.96,2.6078]
[1740606439362,0.9247762,134.99,134.97,2.55476197]
[1740606439963,0.9247762,134.99,134.95,9.08]
[1740606440169,0.9247762,134.99,134.94,225.7263]
[1740606440366,0.9247762,134.99,134.95,82.4]
[1740606440572,0.9247762,134.99,134.93,136.8]
[1740606440573,0.9247762,134.99,134.93,219.2]
[1740606440761,18.64964886,134.98,134.93,82.4]
[1740606440965,18.64964886,134.98,134.91,228.28]
[1740606441555,82.9,134.97,134.9,0.03]
[1740606441759,18.64964886,134.98,134.9,82.43]
[1740606442285,18.64964886,134.96,134.9,82.43]
[1740606443866,10.0677762,134.99,134.9,82.43]
[1740606444187,0.9877762,134.99,134.9,82.43]
[1740606444366,18.64964886,134.98,134.9,136.83]
[1740606445375,18.64964886,134.98,134.9,0.03]
[1740606446095,18.64964886,134.98,134.9,136.83]
[1740606446284,0.9877762,134.99,134.91,1.55588503]
[1740606446455,0.9877762,134.99,134.91,138.35588503]
[1740606446662,0.9877762,134.99,134.93,1.0]
[1740606446961,0.9877762,134.99,134.94,11.63513132]
[1740606447181,0.9877762,134.99,134.94,17.92463132]
[1740606447382,0.9877762,134.99,134.94,16.92463132]
[1740606447879,0.9877762,134.99,134.94,17.92463132]
[1740606448089,0.9877762,134.99,134.95,1.0]
[1740606448397,0.9877762,134.99,134.96,1.55507425]
[1740606448592,0.9877762,134.99,134.96,138.35507425]
[1740606449362,0.9877762,134.99,134.96,136.8]
[1740606450182,0.9877762,134.99,134.97,1.55518328]
[1740606450367,0.9877762,134.99,134.98,2.55454866]
[1740606450679,0.063,135.0,134.99,1.14216157]
[1740606450859,0.063,135.0,134.99,240.55091043]
[1740606451057,0.063,135.02,135.01,2.56864628]
[1740606451261,0.063,135.02,135.01,10.61407674]
[1740606452084,0.063,135.02,135.01,147.41407674]
[1740606452268,0.063,135.02,135.01,145.86]
[1740606452974,0.063,135.02,135.01,249.47829514]
[1740606453289,0.063,135.04,135.03,1.0]
[1740606453488,0.063,135.04,135.03,241.97229403]
[1740606453686,0.063,135.04,135.03,371.67409514]
[1740606454068,0.9877762,135.1,135.03,371.67409514]
[1740606454069,0.9877762,135.1,135.06,1.0]
[1740606454267,0.9877762,135.1,135.07,11.61351416]
[1740606454468,0.9877762,135.1,135.07,147.41351416]
[1740606454688,0.9877762,135.1,135.07,229.26]
[1740606454889,0.9877762,135.1,135.07,248.47829514]
[1740606455384,0.9877762,135.1,135.07,249.47829514]
[1740606455587,0.9877762,135.1,135.09,2.56864628]
[1740606455807,0.063,135.13,135.12,1.0]
[1740606455980,0.063,135.13,135.12,220.75300935]
[1740606456187,0.063,135.13,135.12,220.2]
[1740606456781,0.063,135.13,135.12,219.2]
[1740606457394,0.063,135.13,135.12,82.4]
[1740606457900,0.063,135.13,135.12,219.2]
[1740606459085,0.063,135.13,135.12,220.2]
[1740606459284,0.063,135.13,135.12,219.2]
[1740606459488,0.063,135.13,135.12,220.2]
[1740606459686,0.063,135.13,135.12,238.84964886]
[1740606460285,0.063,135.13,135.12,237.84964886]
[1740606460490,0.063,135.13,135.12,219.2]
[1740606461195,0.063,135.13,135.12,82.4]
[1740606461397,0.063,135.13,135.12,220.2]
[1740606462482,0.063,135.13,135.12,219.2]
[1740606464296,0.063,135.13,135.09,82.4]
[1740606464482,0.063,135.13,135.09,219.2]
[1740606465180,0.063,135.13,135.1,1.55366791]
[1740606465586,0.063,135.13,135.11,18.64964886]
[1740606465806,0.063,135.13,135.12,1.55308694]
[1740606465985,0.063,135.13,135.12,220.75308694]
[1740606466181,0.063,135.13,135.12,219.2]
[1740606467391,0.063,135.13,135.12,82.4]
[1740606468393,0.063,135.13,135.12,219.2]
[1740606469806,0.063,135.13,135.12,82.4]
[1740606470315,0.063,135.13,135.11,1.55343213]
[1740606470620,0.063,135.13,135.09,82.4]
[1740606470989,0.063,135.13,135.09,219.2]
[1740606471412,0.063,135.13,135.09,82.4]
[1740606472413,0.063,135.13,135.05,136.8]
[1740606472797,0.063,135.13,135.05,138.35424553]
[1740606473007,0.063,135.13,135.05,221.75424553]
[1740606473315,0.063,135.13,135.05,219.2]
[1740606473517,0.063,135.13,135.05,220.2]
[1740606473714,0.063,135.13,135.05,219.2]
[1740606474135,0.063,135.13,135.05,145.84]
[1740606474597,18.71264886,135.13,135.05,136.8]
[1740606474796,18.71264886,135.13,135.04,9.04]
[1740606475993,18.71264886,135.13,135.04,10.59413532]
[1740606476315,19.71264886,135.13,135.04,9.04]
[1740606477103,19.64964886,135.11,135.04,9.04]
[1740606477512,19.64964886,135.11,135.03,124.96]
[1740606477708,18.64964886,135.09,135.03,124.96]
[1740606477902,8.2116,135.08,135.03,124.96]
[1740606478109,1.0,135.07,135.0,0.03]
[1740606478304,18.64964886,135.06,135.0,0.03]
[1740606478617,18.64964886,135.06,135.03,0.063]
[1740606478826,19.64964886,135.07,135.03,0.063]
[1740606479141,1.0,135.06,135.03,0.063]
[1740606479325,19.64964886,135.07,135.03,0.063]
[1740606479497,1.0,135.06,135.03,0.063]
[1740606479698,19.64964886,135.04,135.0,0.03]
[1740606479917,18.64964886,135.04,135.0,0.03]
[1740606480215,18.64964886,135.06,135.0,0.03]
[1740606480421,1.0,135.07,135.0,0.03]
[1740606480616,18.64964886,135.05,135.0,0.03]
[1740606481109,18.64964886,135.06,135.0,0.03]
[1740606481508,18.64964886,135.06,135.0,219.23]
[1740606481716,1.5876,135.08,135.01,1.55469634]
[1740606481905,1.5421,135.12,135.01,220.75469634]
[1740606482111,1.5421,135.12,135.01,219.2]
[1740606482309,18.64964886,135.09,135.01,219.2]
[1740606482620,18.64964886,135.09,135.01,82.4]
[1740606482822,1.0,135.07,135.0,0.03]
[1740606482998,18.64964886,135.06,135.0,0.03]
[1740606483206,18.64964886,135.02,135.0,0.03]
[1740606483398,6.5575,135.05,135.0,82.43]
[1740606483619,6.0082076,135.07,135.0,219.23]
[1740606483810,1.6343,135.07,135.0,219.23]
[1740606484212,6.5575,135.09,135.01,9.04]
[1740606484515,6.5575,135.09,135.01,228.24]
[1740606484717,18.64964886,135.08,135.01,228.24]
[1740606485313,18.64964886,135.08,135.01,91.44]
[1740606486118,1.6343,135.11,135.01,228.24]
[1740606486338,1.6343,135.11,135.02,1.55447318]
[1740606486649,11.50598627,135.13,135.03,18.64964886]
[1740606486650,0.063,135.13,135.03,18.64964886]
[1740606486804,0.063,135.13,135.04,1.55397496]
[1740606487211,0.063,135.13,135.04,221.75397496]
[1740606487407,0.063,135.13,135.07,1.0]
[1740606487614,0.063,135.13,135.08,10.59345596]
[1740606490129,0.063,135.13,135.08,11.59345596]